[Event "Titled Tuesday Blitz December 13 Early 2022"]
[White "Herman, Daniel"]
[Black "Winkels, Marcel"]
[WhiteFideId "30935008"]
[BlackFideId "1003887"]
[WhiteElo "1897"]
[BlackElo "1900"]
[Result "0-1"]
[Round "09"]
[TimeControl "180+1"]
[Date "2022.12.14"]
[WhiteClock "0:00:14"]
[BlackClock "0:00:26"]

1. e4 {[%clk 0:03:00]}  c5 {[%clk 0:02:58]} 2. Nf3 {[%clk 0:03:00]}  e6 {[%clk 0:02:58]} 3. d4 {[%clk 0:03:01]}  cxd4 {[%clk 0:02:58]} 4. Nxd4 {[%clk 0:03:02]}  Nc6 {[%clk 0:02:59]} 5. Nc3 {[%clk 0:03:01]}  Qc7 {[%clk 0:02:59]} 6. g3 {[%clk 0:02:58]}  a6 {[%clk 0:02:58]} 7. Bg2 {[%clk 0:02:57]}  Nf6 {[%clk 0:02:57]} 8. O-O {[%clk 0:02:57]}  Nxd4 {[%clk 0:02:56]} 9. Qxd4 {[%clk 0:02:56]}  Bc5 {[%clk 0:02:57]} 10. Bf4 {[%clk 0:02:57]}  d6 {[%clk 0:02:56]} 11. Qd2 {[%clk 0:02:55]}  e5 {[%clk 0:02:56]} 12. Bg5 {[%clk 0:02:54]}  Be6 {[%clk 0:02:54]} 13. Bxf6 {[%clk 0:02:47]}  gxf6 {[%clk 0:02:54]} 14. Qh6 {[%clk 0:02:39]}  Qe7 {[%clk 0:02:40]} 15. Bh3 {[%clk 0:02:32]}  O-O-O {[%clk 0:02:38]} 16. Nd5 {[%clk 0:02:30]}  Qf8 {[%clk 0:02:29]} 17. Qh4 {[%clk 0:02:08]}  Kb8 {[%clk 0:02:20]} 18. Bf5 {[%clk 0:01:44]}  Bxd5 {[%clk 0:02:12]} 19. exd5 {[%clk 0:01:45]}  Qg7 {[%clk 0:02:12]} 20. b4 {[%clk 0:01:40]}  Bd4 {[%clk 0:02:07]} 21. Rab1 {[%clk 0:01:27]}  Qg5 {[%clk 0:02:04]} 22. Qe4 {[%clk 0:01:27]}  h5 {[%clk 0:02:02]} 23. h4 {[%clk 0:01:27]}  Qxg3+ {[%clk 0:01:56]} 24. Kh1 {[%clk 0:01:19]}  Bxf2 {[%clk 0:01:47]} 25. Rb3 {[%clk 0:01:18]}  Qxh4+ {[%clk 0:01:44]} 26. Qxh4 {[%clk 0:01:16]}  Bxh4 {[%clk 0:01:43]} 27. b5 {[%clk 0:01:13]}  a5 {[%clk 0:01:42]} 28. b6 {[%clk 0:01:08]}  Bg5 {[%clk 0:01:39]} 29. Rc3 {[%clk 0:01:07]}  Bd2 {[%clk 0:01:24]} 30. Rc7 {[%clk 0:01:04]}  Be3 {[%clk 0:01:21]} 31. Rxf7 {[%clk 0:01:04]}  Bxb6 {[%clk 0:01:19]} 32. Be6 {[%clk 0:00:40]}  Rhf8 {[%clk 0:01:08]} 33. R1xf6 {[%clk 0:00:36]}  Rxf7 {[%clk 0:01:07]} 34. Rxf7 {[%clk 0:00:37]}  Rh8 {[%clk 0:00:58]} 35. Kh2 {[%clk 0:00:33]}  e4 {[%clk 0:00:58]} 36. Re7 {[%clk 0:00:28]}  e3 {[%clk 0:00:57]} 37. Bf5 {[%clk 0:00:27]}  Rf8 {[%clk 0:00:49]} 38. Bd3 {[%clk 0:00:23]}  Rf2+ {[%clk 0:00:47]} 39. Kh3 {[%clk 0:00:23]}  Bd4 {[%clk 0:00:43]} 40. Rh7 {[%clk 0:00:19]}  Be5 {[%clk 0:00:42]} 41. Kh4 {[%clk 0:00:16]}  e2 {[%clk 0:00:42]} 42. Bxe2 {[%clk 0:00:15]}  Rxe2 {[%clk 0:00:42]} 43. Kg5 {[%clk 0:00:12]}  Rxc2 {[%clk 0:00:40]} 44. Rxh5 {[%clk 0:00:12]}  Rxa2 {[%clk 0:00:40]} 45. Kf5 {[%clk 0:00:12]}  Rb2 {[%clk 0:00:39]} 46. Ke6 {[%clk 0:00:13]}  a4 {[%clk 0:00:38]} 47. Rh4 {[%clk 0:00:13]}  a3 {[%clk 0:00:36]} 48. Ra4 {[%clk 0:00:12]}  a2 {[%clk 0:00:36]} 49. Kd7 {[%clk 0:00:11]}  Rh2 {[%clk 0:00:32]} 50. Ra3 {[%clk 0:00:07]}  a1=Q {[%clk 0:00:31]} 51. Rxa1 {[%clk 0:00:07]}  Bxa1 {[%clk 0:00:31]} 52. Kd8 {[%clk 0:00:08]}  b5 {[%clk 0:00:30]} 53. Kd7 {[%clk 0:00:09]}  Be5 {[%clk 0:00:29]} 54. Kd8 {[%clk 0:00:09]}  b4 {[%clk 0:00:29]} 55. Kd7 {[%clk 0:00:10]}  b3 {[%clk 0:00:29]} 56. Kd8 {[%clk 0:00:10]}  b2 {[%clk 0:00:30]} 57. Kd7 {[%clk 0:00:11]}  b1=Q {[%clk 0:00:30]} 58. Kd8 {[%clk 0:00:12]}  Rh8+ {[%clk 0:00:29]} 59. Kd7 {[%clk 0:00:13]}  Qh7+ {[%clk 0:00:27]} 60. Kc6 {[%clk 0:00:14]}  Qb7# {[%clk 0:00:26]} 0-1


[Site "https://www.chess.com"]

[Event "Titled Tuesday Blitz December 13 Early 2022"]
[White "Hirneise, Jens"]
[Black "Pajeken, Jakob Leon"]
[WhiteFideId "24614734"]
[BlackFideId "12942839"]
[WhiteElo "2345"]
[BlackElo "2414"]
[Result "0-1"]
[Round "09"]
[TimeControl "180+1"]
[Date "2022.12.14"]
[WhiteClock "0:00:13"]
[BlackClock "0:00:24"]

1. d4 {[%clk 0:03:00]}  d5 {[%clk 0:02:59]} 2. Nf3 {[%clk 0:03:01]}  Nf6 {[%clk 0:02:59]} 3. Bf4 {[%clk 0:03:01]}  h6 {[%clk 0:02:57]} 4. h3 {[%clk 0:02:57]}  e6 {[%clk 0:02:55]} 5. e3 {[%clk 0:02:57]}  Bd6 {[%clk 0:02:55]} 6. Nbd2 {[%clk 0:02:49]}  c5 {[%clk 0:02:55]} 7. c3 {[%clk 0:02:49]}  Nc6 {[%clk 0:02:41]} 8. Bxd6 {[%clk 0:02:40]}  Qxd6 {[%clk 0:02:40]} 9. Bb5 {[%clk 0:02:41]}  O-O {[%clk 0:02:33]} 10. O-O {[%clk 0:02:39]}  Bd7 {[%clk 0:02:32]} 11. Bxc6 {[%clk 0:02:32]}  Bxc6 {[%clk 0:02:31]} 12. Ne5 {[%clk 0:02:30]}  b6 {[%clk 0:02:28]} 13. f4 {[%clk 0:02:29]}  Bb5 {[%clk 0:02:27]} 14. Rf3 {[%clk 0:02:27]}  Ne8 {[%clk 0:02:15]} 15. Rg3 {[%clk 0:02:22]}  f6 {[%clk 0:02:10]} 16. Ng6 {[%clk 0:02:02]}  Rf7 {[%clk 0:02:06]} 17. Qh5 {[%clk 0:02:00]}  Bd3 {[%clk 0:01:57]} 18. Nh8 {[%clk 0:01:51]}  Rf8 {[%clk 0:01:38]} 19. Qxh6 {[%clk 0:01:44]}  Bh7 {[%clk 0:01:37]} 20. Nf3 {[%clk 0:01:05]}  Kxh8 {[%clk 0:01:32]} 21. Qh5 {[%clk 0:01:05]}  g6 {[%clk 0:01:05]} 22. Rxg6 {[%clk 0:01:01]}  Ng7 {[%clk 0:01:05]} 23. Qh6 {[%clk 0:00:43]}  Nf5 {[%clk 0:01:03]} 24. Qh5 {[%clk 0:00:40]}  Nxe3 {[%clk 0:00:55]} 25. Rh6 {[%clk 0:00:34]}  Qd7 {[%clk 0:00:46]} 26. Nh4 {[%clk 0:00:33]}  Rf7 {[%clk 0:00:28]} 27. Re1 {[%clk 0:00:21]}  Nf5 {[%clk 0:00:27]} 28. Ng6+ {[%clk 0:00:17]}  Kg8 {[%clk 0:00:27]} 29. g4 {[%clk 0:00:16]}  Nxh6 {[%clk 0:00:27]} 30. Qxh6 {[%clk 0:00:16]}  Rg7 {[%clk 0:00:25]} 31. Nh4 {[%clk 0:00:15]}  Qf7 {[%clk 0:00:24]} 32. Kh2 {[%clk 0:00:14]}  Be4 {[%clk 0:00:24]} 33. dxc5 {[%clk 0:00:12]}  Rh7 {[%clk 0:00:23]} 34. g5 {[%clk 0:00:10]}  Rxh6 {[%clk 0:00:23]} 35. gxh6 {[%clk 0:00:11]}  bxc5 {[%clk 0:00:23]} 36. Rg1+ {[%clk 0:00:12]}  Kh7 {[%clk 0:00:23]} 37. Rg7+ {[%clk 0:00:12]}  Qxg7 {[%clk 0:00:23]} 38. hxg7 {[%clk 0:00:13]}  Kxg7 {[%clk 0:00:24]} 0-1


[Site "https://www.chess.com"]

[Event "Titled Tuesday Blitz December 13 Early 2022"]
[White "Hrabinska, Myroslava"]
[Black "Omariev, Maksim"]
[WhiteFideId "14109190"]
[BlackFideId "4193423"]
[WhiteElo "2171"]
[BlackElo "2414"]
[Result "0-1"]
[Round "09"]
[TimeControl "180+1"]
[Date "2022.12.14"]
[WhiteClock "0:00:10"]
[BlackClock "0:00:01"]

1. e4 {[%clk 0:02:56]}  c5 {[%clk 0:02:57]} 2. d4 {[%clk 0:02:52]}  cxd4 {[%clk 0:02:57]} 3. c3 {[%clk 0:02:51]}  dxc3 {[%clk 0:02:56]} 4. Nxc3 {[%clk 0:02:52]}  Nc6 {[%clk 0:02:56]} 5. Nf3 {[%clk 0:02:52]}  e6 {[%clk 0:02:53]} 6. Bc4 {[%clk 0:02:50]}  a6 {[%clk 0:02:54]} 7. O-O {[%clk 0:02:48]}  Nge7 {[%clk 0:02:54]} 8. Bg5 {[%clk 0:02:48]}  f6 {[%clk 0:02:55]} 9. Be3 {[%clk 0:02:43]}  Ng6 {[%clk 0:02:55]} 10. Nd4 {[%clk 0:02:42]}  Nge5 {[%clk 0:02:48]} 11. Bb3 {[%clk 0:02:40]}  Be7 {[%clk 0:02:42]} 12. f4 {[%clk 0:02:39]}  Nxd4 {[%clk 0:02:40]} 13. Bxd4 {[%clk 0:02:31]}  Nc6 {[%clk 0:02:40]} 14. Be3 {[%clk 0:02:15]}  O-O {[%clk 0:02:39]} 15. f5 {[%clk 0:02:14]}  Kh8 {[%clk 0:02:37]} 16. Rf3 {[%clk 0:02:06]}  Qe8 {[%clk 0:02:22]} 17. Rh3 {[%clk 0:02:05]}  Na5 {[%clk 0:01:57]} 18. Qe1 {[%clk 0:01:53]}  Qf7 {[%clk 0:01:56]} 19. Qh4 {[%clk 0:01:49]}  Qg8 {[%clk 0:01:57]} 20. Bc2 {[%clk 0:01:40]}  Nc4 {[%clk 0:01:53]} 21. Bd4 {[%clk 0:01:33]}  e5 {[%clk 0:00:47]} 22. Bf2 {[%clk 0:01:24]}  b5 {[%clk 0:00:18]} 23. Bb3 {[%clk 0:01:08]}  Bb7 {[%clk 0:00:16]} 24. a4 {[%clk 0:01:07]}  Bc6 {[%clk 0:00:13]} 25. Rd1 {[%clk 0:01:01]}  Rfc8 {[%clk 0:00:06]} 26. Nd5 {[%clk 0:00:59]}  Bd8 {[%clk 0:00:03]} 27. g4 {[%clk 0:00:53]}  Bxd5 {[%clk 0:00:03]} 28. Rxd5 {[%clk 0:00:52]}  bxa4 {[%clk 0:00:03]} 29. Ba2 {[%clk 0:00:43]}  Rab8 {[%clk 0:00:03]} 30. Rc5 {[%clk 0:00:40]}  Rxc5 {[%clk 0:00:03]} 31. Bxc5 {[%clk 0:00:39]}  d5 {[%clk 0:00:03]} 32. Ba3 {[%clk 0:00:31]}  h6 {[%clk 0:00:02]} 33. Bxc4 {[%clk 0:00:27]}  dxc4 {[%clk 0:00:02]} 34. Qe1 {[%clk 0:00:26]}  Bb6+ {[%clk 0:00:03]} 35. Kh1 {[%clk 0:00:26]}  Bd4 {[%clk 0:00:03]} 36. Qc1 {[%clk 0:00:24]}  Qc8 {[%clk 0:00:03]} 37. Rxh6+ {[%clk 0:00:23]}  Kg8 {[%clk 0:00:03]} 38. Rg6 {[%clk 0:00:22]}  Qb7 {[%clk 0:00:02]} 39. Qc2 {[%clk 0:00:19]}  Bxb2 {[%clk 0:00:01]} 40. Qxc4+ {[%clk 0:00:19]}  Kh7 {[%clk 0:00:01]} 41. Bxb2 {[%clk 0:00:12]}  Qxb2 {[%clk 0:00:02]} 42. Qf1 {[%clk 0:00:11]}  Qc2 {[%clk 0:00:02]} 43. Qe1 {[%clk 0:00:10]}  Rb1 {[%clk 0:00:01]} 0-1


[Site "https://www.chess.com"]

[Event "Titled Tuesday Blitz December 13 Early 2022"]
[White "Ibarra Jerez, Jose Carlos"]
[Black "Ashraf, Artin"]
[WhiteFideId "2226332"]
[BlackFideId "22514805"]
[WhiteElo "2638"]
[BlackElo "2243"]
[Result "1/2-1/2"]
[Round "09"]
[TimeControl "180+1"]
[Date "2022.12.13"]
[WhiteClock "0:00:19"]
[BlackClock "0:00:21"]

1. d4 {[%clk 0:03:00]}  e6 {[%clk 0:02:56]} 2. Bf4 {[%clk 0:03:00]}  Nf6 {[%clk 0:02:55]} 3. e3 {[%clk 0:03:00]}  h6 {[%clk 0:02:53]} 4. h3 {[%clk 0:02:59]}  d5 {[%clk 0:02:53]} 5. Nd2 {[%clk 0:02:57]}  Bd6 {[%clk 0:02:53]} 6. Ngf3 {[%clk 0:02:57]}  c5 {[%clk 0:02:50]} 7. dxc5 {[%clk 0:02:54]}  Bxc5 {[%clk 0:02:44]} 8. Bd3 {[%clk 0:02:53]}  Nc6 {[%clk 0:02:44]} 9. O-O {[%clk 0:02:52]}  O-O {[%clk 0:02:42]} 10. e4 {[%clk 0:02:52]}  dxe4 {[%clk 0:02:33]} 11. Nxe4 {[%clk 0:02:52]}  Nxe4 {[%clk 0:02:33]} 12. Bxe4 {[%clk 0:02:52]}  Qf6 {[%clk 0:02:32]} 13. Qc1 {[%clk 0:02:39]}  e5 {[%clk 0:02:19]} 14. Be3 {[%clk 0:02:35]}  Bd6 {[%clk 0:02:11]} 15. Rd1 {[%clk 0:02:30]}  Bc7 {[%clk 0:02:10]} 16. c3 {[%clk 0:02:18]}  Bf5 {[%clk 0:02:05]} 17. Qc2 {[%clk 0:02:18]}  Bxe4 {[%clk 0:02:02]} 18. Qxe4 {[%clk 0:02:19]}  Qe6 {[%clk 0:02:02]} 19. b4 {[%clk 0:02:15]}  a6 {[%clk 0:01:28]} 20. a4 {[%clk 0:02:09]}  b5 {[%clk 0:01:27]} 21. axb5 {[%clk 0:02:01]}  axb5 {[%clk 0:01:28]} 22. g4 {[%clk 0:01:52]}  Rfc8 {[%clk 0:00:47]} 23. Bc5 {[%clk 0:01:44]}  Ra4 {[%clk 0:00:29]} 24. Rxa4 {[%clk 0:01:19]}  bxa4 {[%clk 0:00:30]} 25. Ra1 {[%clk 0:01:20]}  Bd6 {[%clk 0:00:22]} 26. Be3 {[%clk 0:01:11]}  Qb3 {[%clk 0:00:20]} 27. Qd3 {[%clk 0:00:59]}  Bf8 {[%clk 0:00:16]} 28. Nd2 {[%clk 0:00:59]}  Nxb4 {[%clk 0:00:15]} 29. Qf5 {[%clk 0:00:24]}  Qxc3 {[%clk 0:00:10]} 30. Rxa4 {[%clk 0:00:25]}  Qc1+ {[%clk 0:00:09]} 31. Kh2 {[%clk 0:00:23]}  Nd5 {[%clk 0:00:08]} 32. Nc4 {[%clk 0:00:14]}  Rxc4 {[%clk 0:00:06]} 33. Bxc1 {[%clk 0:00:13]}  Rxa4 {[%clk 0:00:05]} 34. Qd7 {[%clk 0:00:11]}  Rd4 {[%clk 0:00:05]} 35. Qe8 {[%clk 0:00:11]}  Nf6 {[%clk 0:00:05]} 36. Qb8 {[%clk 0:00:11]}  Nd7 {[%clk 0:00:03]} 37. Qe8 {[%clk 0:00:09]}  g6 {[%clk 0:00:03]} 38. Bxh6 {[%clk 0:00:09]}  Rd1 {[%clk 0:00:02]} 39. h4 {[%clk 0:00:06]}  Rd4 {[%clk 0:00:03]} 40. f3 {[%clk 0:00:05]}  Rd1 {[%clk 0:00:03]} 41. h5 {[%clk 0:00:05]}  gxh5 {[%clk 0:00:04]} 42. gxh5 {[%clk 0:00:05]}  Rd4 {[%clk 0:00:04]} 43. Bxf8 {[%clk 0:00:05]}  Nxf8 {[%clk 0:00:04]} 44. Kg3 {[%clk 0:00:05]}  Rd6 {[%clk 0:00:05]} 45. Qxe5 {[%clk 0:00:05]}  Re6 {[%clk 0:00:06]} 46. Qg5+ {[%clk 0:00:05]}  Kh7 {[%clk 0:00:06]} 47. Qf5+ {[%clk 0:00:05]}  Kg7 {[%clk 0:00:07]} 48. Kh4 {[%clk 0:00:05]}  Nh7 {[%clk 0:00:07]} 49. Qg4+ {[%clk 0:00:05]}  Kf8 {[%clk 0:00:07]} 50. Qf4 {[%clk 0:00:05]}  Kg7 {[%clk 0:00:07]} 51. Qg3+ {[%clk 0:00:05]}  Kf8 {[%clk 0:00:07]} 52. Qb8+ {[%clk 0:00:06]}  Kg7 {[%clk 0:00:08]} 53. Qb2+ {[%clk 0:00:07]}  Kg8 {[%clk 0:00:07]} 54. f4 {[%clk 0:00:07]}  Nf8 {[%clk 0:00:06]} 55. Kg5 {[%clk 0:00:07]}  Nh7+ {[%clk 0:00:06]} 56. Kf5 {[%clk 0:00:07]}  Nf8 {[%clk 0:00:06]} 57. Qg2+ {[%clk 0:00:07]}  Kh7 {[%clk 0:00:06]} 58. Qc2 {[%clk 0:00:07]}  Kg8 {[%clk 0:00:05]} 59. Qc8 {[%clk 0:00:08]}  Kg7 {[%clk 0:00:05]} 60. Qc7 {[%clk 0:00:07]}  Nh7 {[%clk 0:00:05]} 61. Kg4 {[%clk 0:00:05]}  Nf6+ {[%clk 0:00:05]} 62. Kg5 {[%clk 0:00:05]}  Ne4+ {[%clk 0:00:05]} 63. Kh4 {[%clk 0:00:05]}  Nd6 {[%clk 0:00:06]} 64. Qc3+ {[%clk 0:00:04]}  Kh7 {[%clk 0:00:06]} 65. Qd3+ {[%clk 0:00:04]}  Kg7 {[%clk 0:00:06]} 66. Kg4 {[%clk 0:00:04]}  Ne4 {[%clk 0:00:05]} 67. f5 {[%clk 0:00:04]}  Nf2+ {[%clk 0:00:06]} 68. Kg5 {[%clk 0:00:03]}  Nxd3 {[%clk 0:00:06]} 69. fxe6 {[%clk 0:00:03]}  fxe6 {[%clk 0:00:05]} 70. h6+ {[%clk 0:00:04]}  Kh7 {[%clk 0:00:05]} 71. Kf6 {[%clk 0:00:04]}  Nf4 {[%clk 0:00:03]} 72. Ke5 {[%clk 0:00:04]}  Kxh6 {[%clk 0:00:04]} 73. Kxf4 {[%clk 0:00:04]}  Kg6 {[%clk 0:00:05]} 74. Ke5 {[%clk 0:00:05]}  Kf7 {[%clk 0:00:05]} 75. Ke4 {[%clk 0:00:06]}  Kf6 {[%clk 0:00:06]} 76. Kf4 {[%clk 0:00:06]}  Ke7 {[%clk 0:00:06]} 77. Ke5 {[%clk 0:00:07]}  Kd7 {[%clk 0:00:06]} 78. Ke4 {[%clk 0:00:08]}  Kd6 {[%clk 0:00:07]} 79. Kd4 {[%clk 0:00:08]}  e5+ {[%clk 0:00:08]} 80. Ke4 {[%clk 0:00:09]}  Ke6 {[%clk 0:00:09]} 81. Ke3 {[%clk 0:00:09]}  Kd5 {[%clk 0:00:10]} 82. Kd3 {[%clk 0:00:10]}  e4+ {[%clk 0:00:10]} 83. Ke3 {[%clk 0:00:11]}  Ke5 {[%clk 0:00:11]} 84. Ke2 {[%clk 0:00:11]}  Kf4 {[%clk 0:00:12]} 85. Kf2 {[%clk 0:00:12]}  e3+ {[%clk 0:00:12]} 86. Ke2 {[%clk 0:00:13]}  Ke4 {[%clk 0:00:13]} 87. Ke1 {[%clk 0:00:13]}  Kf3 {[%clk 0:00:14]} 88. Kf1 {[%clk 0:00:14]}  Kg4 {[%clk 0:00:14]} 89. Ke2 {[%clk 0:00:15]}  Kf4 {[%clk 0:00:14]} 90. Ke1 {[%clk 0:00:15]}  Kf3 {[%clk 0:00:15]} 91. Kf1 {[%clk 0:00:16]}  Ke4 {[%clk 0:00:16]} 92. Ke2 {[%clk 0:00:17]}  Kd4 {[%clk 0:00:17]} 93. Ke1 {[%clk 0:00:17]}  Kc3 {[%clk 0:00:17]} 94. Ke2 {[%clk 0:00:18]}  Kd4 {[%clk 0:00:18]} 95. Ke1 {[%clk 0:00:18]}  Kd3 {[%clk 0:00:19]} 96. Kd1 {[%clk 0:00:18]}  e2+ {[%clk 0:00:20]} 97. Ke1 {[%clk 0:00:19]}  Ke3 {[%clk 0:00:21]} 1/2-1/2


[Site "https://www.chess.com"]

[Event "Titled Tuesday Blitz December 13 Early 2022"]
[White "Jiganchine, Roman"]
[Black "Estrada Nieto, Julian"]
[WhiteFideId "2603667"]
[BlackFideId "5101018"]
[WhiteElo "2363"]
[BlackElo "2195"]
[Result "0-1"]
[Round "09"]
[TimeControl "180+1"]
[Date "2022.12.14"]
[WhiteClock "0:00:01"]
[BlackClock "0:00:07"]

1. e4 {[%clk 0:03:00]}  e5 {[%clk 0:03:00]} 2. Nf3 {[%clk 0:02:59]}  Nc6 {[%clk 0:03:00]} 3. Nc3 {[%clk 0:02:58]}  Nf6 {[%clk 0:02:59]} 4. Bb5 {[%clk 0:02:56]}  Bb4 {[%clk 0:02:58]} 5. O-O {[%clk 0:02:54]}  O-O {[%clk 0:02:57]} 6. Bxc6 {[%clk 0:02:53]}  dxc6 {[%clk 0:02:56]} 7. d3 {[%clk 0:02:49]}  Bxc3 {[%clk 0:02:54]} 8. bxc3 {[%clk 0:02:48]}  Bg4 {[%clk 0:02:45]} 9. h3 {[%clk 0:02:42]}  Bxf3 {[%clk 0:02:45]} 10. Qxf3 {[%clk 0:02:42]}  c5 {[%clk 0:02:40]} 11. a4 {[%clk 0:02:34]}  a5 {[%clk 0:02:32]} 12. Be3 {[%clk 0:02:28]}  b6 {[%clk 0:02:27]} 13. Rad1 {[%clk 0:01:55]}  Qe7 {[%clk 0:02:18]} 14. Qf5 {[%clk 0:01:46]}  Nd7 {[%clk 0:01:50]} 15. f4 {[%clk 0:01:42]}  Rad8 {[%clk 0:01:45]} 16. Qh5 {[%clk 0:01:23]}  c4 {[%clk 0:01:33]} 17. fxe5 {[%clk 0:01:01]}  cxd3 {[%clk 0:01:28]} 18. cxd3 {[%clk 0:00:56]}  Qxe5 {[%clk 0:01:22]} 19. Qxe5 {[%clk 0:00:31]}  Nxe5 {[%clk 0:01:21]} 20. d4 {[%clk 0:00:27]}  Nc4 {[%clk 0:01:21]} 21. Bf4 {[%clk 0:00:27]}  c6 {[%clk 0:01:19]} 22. d5 {[%clk 0:00:23]}  cxd5 {[%clk 0:01:07]} 23. Rxd5 {[%clk 0:00:21]}  Rxd5 {[%clk 0:01:06]} 24. exd5 {[%clk 0:00:21]}  Rd8 {[%clk 0:01:07]} 25. Rd1 {[%clk 0:00:17]}  f6 {[%clk 0:01:01]} 26. Rd4 {[%clk 0:00:16]}  Nd6 {[%clk 0:00:55]} 27. Kf2 {[%clk 0:00:13]}  Kf7 {[%clk 0:00:53]} 28. h4 {[%clk 0:00:13]}  Nf5 {[%clk 0:00:49]} 29. Rd1 {[%clk 0:00:10]}  Rd7 {[%clk 0:00:47]} 30. g3 {[%clk 0:00:07]}  h6 {[%clk 0:00:40]} 31. h5 {[%clk 0:00:07]}  Nd6 {[%clk 0:00:39]} 32. Rd4 {[%clk 0:00:04]}  f5 {[%clk 0:00:39]} 33. Kf3 {[%clk 0:00:03]}  Kf6 {[%clk 0:00:35]} 34. Bxd6 {[%clk 0:00:01]}  Rxd6 {[%clk 0:00:35]} 35. c4 {[%clk 0:00:02]}  Ke5 {[%clk 0:00:34]} 36. Rd2 {[%clk 0:00:01]}  g5 {[%clk 0:00:26]} 37. Ke3 {[%clk 0:00:02]}  f4+ {[%clk 0:00:25]} 38. gxf4+ {[%clk 0:00:03]}  gxf4+ {[%clk 0:00:26]} 39. Kf3 {[%clk 0:00:03]}  Rd7 {[%clk 0:00:16]} 40. Re2+ {[%clk 0:00:03]}  Kd4 {[%clk 0:00:16]} 41. Re4+ {[%clk 0:00:04]}  Kc5 {[%clk 0:00:16]} 42. Rxf4 {[%clk 0:00:04]}  Rg7 {[%clk 0:00:16]} 43. Rg4 {[%clk 0:00:03]}  Rf7+ {[%clk 0:00:16]} 44. Rf4 {[%clk 0:00:04]}  Rg7 {[%clk 0:00:16]} 45. Rg4 {[%clk 0:00:04]}  Re7 {[%clk 0:00:16]} 46. Rf4 {[%clk 0:00:05]}  Re1 {[%clk 0:00:15]} 47. Kg4 {[%clk 0:00:05]}  Rg1+ {[%clk 0:00:14]} 48. Kf5 {[%clk 0:00:05]}  Rg5+ {[%clk 0:00:14]} 49. Kf6 {[%clk 0:00:05]}  Rxh5 {[%clk 0:00:14]} 50. Ke7 {[%clk 0:00:04]}  Rg5 {[%clk 0:00:14]} 51. d6 {[%clk 0:00:04]}  Rg7+ {[%clk 0:00:14]} 52. Ke6 {[%clk 0:00:04]}  Rg6+ {[%clk 0:00:14]} 53. Ke7 {[%clk 0:00:04]}  Rxd6 {[%clk 0:00:14]} 54. Rf5+ {[%clk 0:00:04]}  Kc6 {[%clk 0:00:13]} 55. Rb5 {[%clk 0:00:03]}  Rd4 {[%clk 0:00:12]} 56. c5 {[%clk 0:00:03]}  bxc5 {[%clk 0:00:10]} 57. Rxa5 {[%clk 0:00:03]}  Kb6 {[%clk 0:00:11]} 58. Rb5+ {[%clk 0:00:03]}  Kc6 {[%clk 0:00:11]} 59. Ra5 {[%clk 0:00:04]}  c4 {[%clk 0:00:11]} 60. Ra6+ {[%clk 0:00:04]}  Kb7 {[%clk 0:00:10]} 61. Rxh6 {[%clk 0:00:04]}  c3 {[%clk 0:00:09]} 62. Rh3 {[%clk 0:00:04]}  Rc4 {[%clk 0:00:09]} 63. Rh1 {[%clk 0:00:04]}  Kb6 {[%clk 0:00:10]} 64. Kd6 {[%clk 0:00:03]}  Ka5 {[%clk 0:00:09]} 65. Kd5 {[%clk 0:00:03]}  Rc8 {[%clk 0:00:08]} 66. Kd4 {[%clk 0:00:03]}  Kxa4 {[%clk 0:00:08]} 67. Rb1 {[%clk 0:00:03]}  Ka3 {[%clk 0:00:07]} 68. Kd3 {[%clk 0:00:02]}  c2 {[%clk 0:00:06]} 69. Rc1 {[%clk 0:00:01]}  Kb2 {[%clk 0:00:07]} 0-1


[Site "https://www.chess.com"]

[Event "Titled Tuesday Blitz December 13 Early 2022"]
[White "Jumanov, Elbek"]
[Black "Goryachkina, Aleksandra"]
[WhiteFideId "14202905"]
[BlackFideId "4147103"]
[WhiteElo "2055"]
[BlackElo "2484"]
[Result "1/2-1/2"]
[Round "09"]
[TimeControl "180+1"]
[Date "2022.12.14"]
[WhiteClock "0:00:56"]
[BlackClock "0:00:20"]

1. c4 {[%clk 0:03:00]}  Nf6 {[%clk 0:02:59]} 2. Nf3 {[%clk 0:03:00]}  c5 {[%clk 0:02:57]} 3. Nc3 {[%clk 0:02:58]}  Nc6 {[%clk 0:02:57]} 4. d4 {[%clk 0:02:56]}  cxd4 {[%clk 0:02:58]} 5. Nxd4 {[%clk 0:02:57]}  e6 {[%clk 0:02:58]} 6. g3 {[%clk 0:02:57]}  Bc5 {[%clk 0:02:58]} 7. Nc2 {[%clk 0:02:55]}  d5 {[%clk 0:02:42]} 8. cxd5 {[%clk 0:02:53]}  exd5 {[%clk 0:02:42]} 9. Bg2 {[%clk 0:02:50]}  Be6 {[%clk 0:02:41]} 10. O-O {[%clk 0:02:48]}  O-O {[%clk 0:02:40]} 11. Bg5 {[%clk 0:02:39]}  h6 {[%clk 0:02:20]} 12. Bxf6 {[%clk 0:02:35]}  Qxf6 {[%clk 0:02:20]} 13. Nxd5 {[%clk 0:02:35]}  Qxb2 {[%clk 0:02:11]} 14. Nc7 {[%clk 0:01:57]}  Rad8 {[%clk 0:02:10]} 15. Qb1 {[%clk 0:01:56]}  Qxb1 {[%clk 0:02:03]} 16. Rfxb1 {[%clk 0:01:49]}  Rd2 {[%clk 0:01:33]} 17. Rxb7 {[%clk 0:01:46]}  Rxc2 {[%clk 0:01:29]} 18. Bxc6 {[%clk 0:01:40]}  Bd4 {[%clk 0:01:13]} 19. Rd1 {[%clk 0:01:37]}  Bc8 {[%clk 0:00:54]} 20. Be4 {[%clk 0:01:25]}  Rxe2 {[%clk 0:00:41]} 21. Rxd4 {[%clk 0:01:19]}  Rxe4 {[%clk 0:00:39]} 22. Rxe4 {[%clk 0:01:11]}  Bxb7 {[%clk 0:00:38]} 23. Rb4 {[%clk 0:01:11]}  Bc6 {[%clk 0:00:33]} 24. Rc4 {[%clk 0:01:11]}  Bf3 {[%clk 0:00:32]} 25. Rc3 {[%clk 0:01:08]}  Be4 {[%clk 0:00:30]} 26. f3 {[%clk 0:01:07]}  Bb1 {[%clk 0:00:25]} 27. Ra3 {[%clk 0:01:05]}  Rd8 {[%clk 0:00:22]} 28. Rxa7 {[%clk 0:00:57]}  Rd1+ {[%clk 0:00:22]} 29. Kf2 {[%clk 0:00:57]}  Rd2+ {[%clk 0:00:23]} 30. Ke3 {[%clk 0:00:57]}  Rxa2 {[%clk 0:00:23]} 31. Rxa2 {[%clk 0:00:54]}  Bxa2 {[%clk 0:00:22]} 32. Nb5 {[%clk 0:00:55]}  f6 {[%clk 0:00:21]} 33. Nd4 {[%clk 0:00:55]}  Kf7 {[%clk 0:00:21]} 34. h4 {[%clk 0:00:55]}  g5 {[%clk 0:00:20]} 35. hxg5 {[%clk 0:00:54]}  hxg5 {[%clk 0:00:21]} 36. f4 {[%clk 0:00:55]}  gxf4+ {[%clk 0:00:21]} 37. Kxf4 {[%clk 0:00:55]}  Bc4 {[%clk 0:00:21]} 38. g4 {[%clk 0:00:55]}  Bd3 {[%clk 0:00:21]} 39. g5 {[%clk 0:00:55]}  fxg5+ {[%clk 0:00:20]} 40. Kxg5 {[%clk 0:00:56]} 1/2-1/2


[Site "https://www.chess.com"]